fUSD/lending_fUSD_20241216
["ID","MTS","AMOUNT","RATE_DAILY","PERIOD"]
[345532509,1734318643146,-500.0,0.00022296,3]
[345532511,1734318643155,-500.0,0.00022296,3]
[345532513,1734318643164,-500.0,0.00022296,3]
[345532514,1734318643174,-500.0,0.00022296,3]
[345532516,1734318643185,-500.0,0.00022296,3]
[345532518,1734318643197,-500.0,0.00022296,3]
[345532520,1734318643206,-500.0,0.00022296,3]
[345532522,1734318643215,-500.0,0.00022296,3]
[345532524,1734318643227,-500.0,0.00022296,3]
[345532526,1734318643236,-172.83877941,0.00022296,3]
[345532528,1734318643246,-553.88468273,0.00022296,3]
[345532530,1734318643257,-506.94453393,0.00022296,3]
[345532532,1734318643266,-500.0,0.00022296,3]
[345532534,1734318643277,-505.44942717,0.00022296,3]
[345532536,1734318643286,-500.0,0.00022296,3]
[345532539,1734318643296,-500.0,0.00022296,3]
[345532541,1734318643305,-500.0,0.00022296,3]
[345532542,1734318643314,-500.0,0.00022296,3]
[345532544,1734318643332,-516.73530096,0.00022296,3]
[345532546,1734318643341,-500.0,0.00022296,3]
[345532548,1734318643351,-500.0,0.00022296,3]
[345532550,1734318643360,-500.0,0.00022296,3]
[345532552,1734318643369,-500.0,0.00022296,3]
[345532554,1734318643380,-500.0,0.00022296,3]
[345532556,1734318643389,-500.0,0.00022296,3]
[345532558,1734318643399,-500.0,0.00022296,3]
[345532560,1734318643408,-549.60429375,0.00022296,3]
[345532562,1734318643419,-500.0,0.00022296,3]
[345532564,1734318643429,-505.90664997,0.00022296,3]
[345532566,1734318643439,-500.0,0.00022296,3]
[345532569,1734318643448,-531.79559557,0.00022296,3]
[345532570,1734318643458,-500.0,0.00022296,3]
[345532572,1734318643468,-508.16659597,0.00022296,3]
[345532574,1734318643478,-500.0,0.00022296,3]
[345532576,1734318643487,-507.62402884,0.00022296,3]
[345532578,1734318643497,-500.0,0.00022296,3]
[345532580,1734318643506,-500.0,0.00022296,3]
[345532582,1734318643516,-500.0,0.00022296,3]
[345532585,1734318643525,-500.0,0.00022296,3]
[345532586,1734318643534,-500.0,0.00022296,3]
[345532588,1734318643543,-500.0,0.00022296,3]
[345532590,1734318643552,-500.0,0.00022296,3]
[345532592,1734318643562,-500.0,0.00022296,3]
[345532594,1734318643571,-500.74332186,0.00022296,3]
[345532597,1734318643581,-500.0,0.00022296,3]
[345532598,1734318643590,-500.0,0.00022296,3]
[345532600,1734318643600,-500.0,0.00022296,3]
[345532603,1734318643609,-510.13829609,0.00022296,3]
[345532605,1734318643619,-500.0,0.00022296,3]
[345532606,1734318643628,-500.0,0.00022296,3]
[345532608,1734318643637,-500.0,0.00022296,3]
[345532610,1734318643646,-500.0,0.00022296,3]
[345532612,1734318643656,-500.0,0.00022296,3]
[345532614,1734318643665,-500.0,0.00022296,3]
[345532616,1734318643674,-500.0,0.00022296,3]
[345532619,1734318643684,-500.0,0.00022296,3]
[345532621,1734318643693,-500.0,0.00022296,3]
[345532622,1734318643703,-500.0,0.00022296,3]
[345532624,1734318643711,-500.0,0.00022296,3]
[345532626,1734318643721,-500.0,0.00022296,3]
[345532628,1734318643730,-500.0,0.00022296,3]
[345532630,1734318643739,-514.67590507,0.00022296,3]
[345532632,1734318643749,-500.0,0.00022296,3]
[345532634,1734318643758,-500.0,0.00022296,3]
[345532636,1734318643768,-500.0,0.00022296,3]
[345532638,1734318643778,-500.0,0.00022296,3]
[345532640,1734318643787,-500.0,0.00022296,3]
[345532642,1734318643796,-500.0,0.00022296,3]
[345532644,1734318643806,-500.0,0.00022296,3]
[345532646,1734318643815,-512.30963671,0.00022296,3]
[345532648,1734318643824,-234.31331864,0.00022296,3]
[345532650,1734318643834,-455.45997748,0.00022296,3]
[345532652,1734318643861,-500.0,0.00022296,3]
[345532655,1734318643872,-500.0,0.00022296,3]
[345532657,1734318643881,-591.54,0.00022296,3]
[345532658,1734318643890,-500.0,0.00022296,3]
[345532660,1734318643900,-500.0,0.00022296,3]
[345532662,1734318643909,-323.56122426,0.00022296,3]
[345532665,1734318643919,-500.0,0.00022296,3]
[345532666,1734318643928,-500.0,0.00022296,3]
[345532668,1734318643938,-1000.0,0.00022296,30]
[345532671,1734318643948,-500.0,0.00022296,3]
[345532673,1734318643957,-500.0,0.00022296,3]
[345532675,1734318643967,-500.0,0.00022296,3]
[345532676,1734318643976,-500.0,0.00022296,3]
[345532678,1734318643986,-500.0,0.00022296,3]
[345532680,1734318643995,-500.0,0.00022296,3]
[345532682,1734318644004,-500.0,0.00022296,3]
[345532684,1734318644014,-500.0,0.00022296,3]
[345532686,1734318644023,-500.0,0.00022296,3]
[345532688,1734318644033,-500.0,0.00022296,3]
[345532690,1734318644042,-500.0,0.00022296,3]
[345532692,1734318644051,-500.0,0.00022296,3]
[345532694,1734318644061,-500.0,0.00022296,3]
[345532696,1734318644070,-500.0,0.00022296,3]
[345532698,1734318644080,-500.0,0.00022296,3]
[345532700,1734318644089,-500.0,0.00022296,3]
[345532702,1734318644099,-500.0,0.00022296,3]
[345532704,1734318644111,-500.0,0.00022296,3]
[345532706,1734318644121,-500.0,0.00022296,3]
[345532708,1734318644131,-500.0,0.00022296,3]
[345532710,1734318644140,-500.0,0.00022296,3]
[345532712,1734318644150,-430.94881267,0.00022296,3]
[345532714,1734318644159,-179.95924228,0.00022296,3]
[345532716,1734318644169,-500.0,0.00022296,3]
[345532718,1734318644179,-500.0,0.00022296,3]
[345532720,1734318644192,-500.0,0.00022296,3]
[345532722,1734318644201,-697.88,0.00022296,3]
[345532724,1734318644210,-500.0,0.00022296,3]
[345532726,1734318644219,-500.0,0.00022296,3]
[345532728,1734318644229,-500.0,0.00022296,3]
[345532730,1734318644239,-500.0,0.00022296,3]
[345532732,1734318644248,-500.0,0.00022296,3]
[345532734,1734318644260,-500.0,0.00022296,3]
[345532736,1734318644270,-500.0,0.00022296,3]
[345532738,1734318644279,-500.0,0.00022296,3]
[345532740,1734318644288,-500.0,0.00022296,3]
[345532742,1734318644297,-500.0,0.00022296,3]
[345532744,1734318644306,-500.0,0.00022296,3]
[345532746,1734318644315,-500.0,0.00022296,3]
[345532748,1734318644325,-500.0,0.00022296,3]
[345532750,1734318644334,-500.0,0.00022296,3]
[345532752,1734318644343,-500.0,0.00022296,3]
[345532754,1734318644361,-500.0,0.00022296,3]
[345532756,1734318644377,-500.0,0.00022296,3]
[345532757,1734318644387,-185.50617999,0.00022296,3]
[345532759,1734318644396,-500.0,0.00022296,3]
[345532761,1734318644406,-500.0,0.00022296,3]
[345532763,1734318644415,-1000.0,0.00022296,3]
[345532765,1734318644424,-500.0,0.00022296,3]
[345532767,1734318644433,-500.0,0.00022296,3]
[345532769,1734318644443,-500.0,0.00022296,3]
[345532771,1734318644452,-500.0,0.00022296,3]
[345532773,1734318644461,-500.0,0.00022296,3]
[345532775,1734318644471,-500.0,0.00022296,3]
[345532777,1734318644480,-500.0,0.00022296,3]
[345532779,1734318644489,-500.0,0.00022296,3]
[345532781,1734318644498,-500.0,0.00022296,3]
[345532783,1734318644508,-500.0,0.00022296,3]
[345532785,1734318644518,-500.0,0.00022296,3]
[345532787,1734318644527,-1000.0,0.00022296,2]
[345532789,1734318644536,-500.0,0.00022296,3]
[345532791,1734318644545,-500.0,0.00022296,3]
[345532793,1734318644554,-500.0,0.00022296,3]
[345532795,1734318644563,-500.0,0.00022296,3]
[345532797,1734318644573,-500.0,0.00022296,3]
[345532798,1734318644582,-500.0,0.00022296,3]
[345532799,1734318644591,-500.0,0.00022296,3]
[345532800,1734318644600,-500.72013563,0.00022296,2]
[345532801,1734318644609,-500.0,0.00022296,3]
[345532802,1734318644618,-500.0,0.00022296,3]
[345532803,1734318644627,-500.0,0.00022296,3]
[345532804,1734318644636,-500.0,0.00022296,3]
[345532805,1734318644645,-500.0,0.00022296,3]
[345532807,1734318644654,-500.0,0.00022296,3]
[345532809,1734318644663,-502.85352879,0.00022296,3]
[345532811,1734318644673,-500.0,0.00022296,3]
[345532813,1734318644682,-406.32,0.00022296,3]
[345532815,1734318644691,-579.53771701,0.00022296,3]
[345532817,1734318644700,-264.26663132,0.00022296,3]
[345532819,1734318644709,-500.0,0.00022296,3]
[345532821,1734318644718,-570.56,0.00022296,3]
[345532823,1734318644728,-500.0,0.00022296,3]
[345532825,1734318644737,-500.0,0.00022296,3]
[345532827,1734318644746,-500.0,0.00022296,3]
[345532829,1734318644756,-500.0,0.00022296,3]
[345532830,1734318644765,-500.0,0.00022296,3]
[345532832,1734318644774,-500.0,0.00022296,3]
[345532834,1734318644783,-500.0,0.00022296,3]
[345532837,1734318644794,-500.0,0.00022296,3]
[345532838,1734318644804,-500.0,0.00022296,3]
[345532840,1734318644813,-500.0,0.00022296,3]
[345532842,1734318644822,-500.0,0.00022296,3]
[345532844,1734318644831,-500.0,0.00022296,3]
[345532846,1734318644841,-500.0,0.00022296,3]
[345532848,1734318644853,-500.0,0.00022296,3]
[345532851,1734318644867,-331.47567534,0.00022296,3]
[345532853,1734318644879,-500.0,0.00022296,3]
[345532854,1734318644888,-500.0,0.00022296,3]
[345532857,1734318644898,-502.61249283,0.00022297,3]
[345532858,1734318644907,-500.0,0.00022297,3]
[345532860,1734318644916,-553.28651807,0.00022297,3]
[345532862,1734318644925,-509.35174726,0.00022297,3]
[345532864,1734318644934,-500.0,0.00022297,3]
[345532866,1734318644944,-500.0,0.00022297,3]
[345532868,1734318644954,-500.0,0.00022297,3]
[345532870,1734318644963,-500.0,0.00022297,3]
[345532872,1734318644972,-500.0,0.00022297,3]
[345532874,1734318644981,-500.0,0.00022297,3]
[345532876,1734318644991,-500.0,0.00022297,3]
[345532878,1734318645000,-500.0,0.00022297,3]
[345532880,1734318645010,-500.0,0.00022297,3]
[345532882,1734318645020,-433.32198442,0.00022297,3]
[345532884,1734318645030,-500.0,0.00022297,3]
[345532886,1734318645039,-500.0,0.00022297,3]
[345532888,1734318645049,-500.0,0.00022297,3]
[345532890,1734318645058,-500.0,0.00022297,3]
[345532892,1734318645068,-500.0,0.00022297,3]
[345532894,1734318645077,-300.0,0.00022297,3]
[345532896,1734318645086,-500.0,0.00022297,3]
[345532898,1734318645096,-500.0,0.00022297,3]
[345532900,1734318645109,-500.0,0.00022297,3]
[345532902,1734318645119,-500.0,0.00022297,3]
[345532904,1734318645128,-500.0,0.00022297,3]
[345532906,1734318645138,-500.0,0.00022297,3]
[345532908,1734318645148,-500.0,0.00022297,3]
[345532910,1734318645158,-500.0,0.00022297,3]
[345532912,1734318645168,-500.0,0.00022297,3]
[345532914,1734318645178,-500.0,0.00022297,3]
[345532917,1734318645188,-500.0,0.00022297,3]
[345532918,1734318645197,-500.0,0.00022297,3]
[345532920,1734318645206,-1000.0,0.00022297,4]
[345532922,1734318645215,-500.0,0.00022297,3]
[345532924,1734318645224,-500.0,0.00022297,3]
[345532926,1734318645235,-500.0,0.00022297,3]
[345532928,1734318645244,-500.0,0.00022297,3]
[345532930,1734318645253,-558.8153353,0.00022297,2]
[345532932,1734318645264,-500.0,0.00022297,3]
[345532934,1734318645273,-500.0,0.00022297,3]
[345532936,1734318645282,-500.0,0.00022297,3]
[345532938,1734318645292,-500.0,0.00022297,3]
[345532940,1734318645301,-500.0,0.00022297,3]
[345532942,1734318645310,-500.0,0.00022297,3]
[345532944,1734318645320,-500.0,0.00022297,3]
[345532946,1734318645329,-527.60782273,0.00022297,3]
[345532948,1734318645338,-500.0,0.00022297,3]
[345532950,1734318645347,-500.0,0.00022297,3]
[345532952,1734318645358,-512.91397134,0.00022297,3]
[345532954,1734318645367,-500.0,0.00022297,3]
[345532956,1734318645376,-500.0,0.00022297,3]
[345532958,1734318645386,-500.0,0.00022297,3]
[345532960,1734318645396,-500.0,0.00022297,3]
[345532962,1734318645405,-500.0,0.00022297,3]
[345532964,1734318645414,-500.0,0.00022298,3]
[345532966,1734318645423,-500.0,0.00022298,3]
[345532968,1734318645433,-150.0,0.00022314,2]
[345532970,1734318645442,-154.20994098,0.00022317,2]
[345532972,1734318645452,-500.0,0.00022319,2]
[345532974,1734318645461,-500.0,0.0002232,2]
[345532976,1734318645470,-150.0,0.00022328,2]
[345532978,1734318645480,-200.0,0.00022332,2]
[345532980,1734318645490,-1500.0,0.00022345,2]
[345532982,1734318645499,-150.0,0.00022358,2]
[345532984,1734318645508,-154.20994098,0.00022358,2]
[345532986,1734318645518,-1000.0,0.0002236,2]
[345532988,1734318645527,-7089.43057149,0.00022364,2]
[345532990,1734318645536,-12336.56159186,0.00022364,2]
[345532992,1734318645546,-2000.0,0.00022364,2]
[345532994,1734318645555,-200.0,0.00022364,2]
[345532996,1734318645564,-200.0,0.00022364,2]
[345532998,1734318645573,-1853.4900212,0.00022364,2]
[345533000,1734318645583,-1003.372824,0.00022364,2]
[345533002,1734318645592,-9616.1658469,0.00022364,2]
[345533004,1734318645601,-1101.14468671,0.00022364,2]
[345533026,1734318645610,-3305.36699236,0.00022365,2]
[345533029,1734318645814,-18432.62065367,0.00022365,2]
[345533031,1734318645823,-361.53592492,0.00022366,2]
[345533033,1734318645833,-3597.99304825,0.00022366,2]
[345533035,1734318645843,-1101.14468671,0.00022367,2]
[345533037,1734318645853,-734.0964578,0.00022368,2]
[345533039,1734318645862,-2062.83598879,0.00022368,2]
[345533041,1734318645872,-200.0,0.00022368,2]
[345533043,1734318645881,-383.82041844,0.00022369,2]
[345533045,1734318645890,-2062.83598879,0.00022369,2]
[345533047,1734318645900,-2920.59562259,0.00022369,2]
[345533049,1734318645909,-12336.56159186,0.0002237,2]
[345533051,1734318645918,-4504.2100623,0.0002237,2]
[345533053,1734318645927,-284.21959434,0.0002237,2]
[345533055,1734318645937,-2531.01947322,0.0002237,2]
[345533057,1734318645946,-2920.59562259,0.0002237,2]
[345533059,1734318645955,-255.74919158,0.00022371,2]
[345533061,1734318645964,-54600.96425137,0.00022371,2]
[345533063,1734318645973,-580.39623012,0.00022371,2]
[345533065,1734318645982,-282.17537954,0.00022372,2]
[345533067,1734318645992,-1892.95768699,0.00022372,2]
[345533069,1734318646001,-150.0,0.00022372,2]
[345533071,1734318646011,-284.21959434,0.00022372,2]
[345533073,1734318646020,-580.39623012,0.00022373,2]
[345533075,1734318646029,-751.2258316,0.00022373,2]
[345533077,1734318646038,-2039.85725575,0.00022373,2]
[345533079,1734318646047,-734.0964578,0.00022375,2]
[345533081,1734318646057,-1031.15431059,0.00022375,2]
[345533083,1734318646067,-282.17537954,0.00022375,2]
[345533085,1734318646076,-1031.15431059,0.00022375,2]
[345533087,1734318646085,-567.8873061,0.00022375,2]
[345533089,1734318646094,-734.0964578,0.00022375,2]
[345533091,1734318646103,-2062.83598879,0.00022376,2]
[345533093,1734318646112,-378.5915374,0.00022377,2]
[345533096,1734318646122,-18432.62065367,0.00022377,2]
[345533099,1734318646131,-9010.33409779,0.00022377,2]
[345533102,1734318646140,-250.40861054,0.00022379,2]
[345533105,1734318646149,-250.40861054,0.00022379,2]
[345533107,1734318646159,-12336.56159186,0.00022379,2]
[345533109,1734318646169,-2039.85725575,0.0002238,2]
[345533111,1734318646178,-15788.99,0.0002238,2]
[345533113,1734318646190,-13668.8897,0.0002238,5]
[345533115,1734318646200,-13888.18280472,0.0002238,7]
[345533117,1734318646209,-9010.33409779,0.0002238,2]
[345533119,1734318646219,-200.0,0.00022381,2]
[345533121,1734318646230,-2062.83598879,0.00022382,2]
[345533123,1734318646239,-2920.59562259,0.00022382,2]
[345533124,1734318646248,-383.82041844,0.00022382,2]
[345533125,1734318646258,-200.0,0.00022383,2]
[345533126,1734318646270,-18432.62065367,0.00022383,2]
[345533127,1734318646280,-2920.59562259,0.00022383,2]
[345533128,1734318646290,-2039.85725575,0.00022384,2]
[345533129,1734318646299,-2039.85725575,0.00022384,2]
[345533130,1734318646309,-250.40861054,0.00022384,2]
[345533132,1734318646319,-284.21959434,0.00022385,2]
[345533134,1734318646328,-751.2258316,0.00022385,2]
[345533136,1734318646337,-15187.30651148,0.00022386,2]
[345533138,1734318646346,-377.69623303,0.00022386,2]
[345533140,1734318646357,-255.74919158,0.00022386,2]
[345533142,1734318646367,-751.2258316,0.00022387,2]
[345533144,1734318646377,-200.0,0.00022387,2]
[345533146,1734318646386,-4504.2100623,0.00022388,2]
[345533148,1734318646396,-1031.15431059,0.00022388,2]
[345533150,1734318646405,-1101.14468671,0.00022388,2]
[345533152,1734318646415,-200.0,0.00022388,2]
[345533154,1734318646424,-12336.56159186,0.00022388,2]
[345533156,1734318646433,-734.0964578,0.00022388,2]
[345533158,1734318646443,-54600.96425137,0.00022389,2]
[345533160,1734318646452,-200.0,0.00022389,2]
[345533162,1734318646461,-2062.83598879,0.00022389,2]
[345533164,1734318646470,-200.0,0.00022389,2]
[345533166,1734318646480,-3305.36699236,0.00022389,2]
[345533168,1734318646489,-751.2258316,0.0002239,2]
[345533170,1734318646498,-567.8873061,0.0002239,2]
[345533172,1734318646508,-3305.36699236,0.0002239,2]
[345533174,1734318646517,-378.5915374,0.00022391,2]
[345533176,1734318646526,-3305.36699236,0.00022391,2]
[345533178,1734318646535,-153.0,0.00022391,2]
[345533180,1734318646544,-221.39324222,0.00022391,2]
[345533182,1734318646553,-377.69623303,0.00022392,2]
[345533184,1734318646562,-15187.30651148,0.00022392,2]
[345533186,1734318646572,-200.0,0.00022392,2]
[345533188,1734318646582,-2531.01947322,0.00022392,2]
[345533190,1734318646591,-383.82041844,0.00022393,2]
[345533192,1734318646600,-1101.14468671,0.00022393,2]
[345533194,1734318646614,-4504.2100623,0.00022393,2]
[345533196,1734318646623,-250.40861054,0.00022393,2]
[345533198,1734318646633,-255.74919158,0.00022393,2]
[345533200,1734318646643,-2531.01947322,0.00022394,2]
[345533202,1734318646653,-200.0,0.00022394,2]
[345533204,1734318646663,-171.10178769,0.00022394,2]
[345533206,1734318646673,-18432.62065367,0.00022394,2]
[345533208,1734318646682,-580.39623012,0.00022395,2]
[345533210,1734318646691,-378.5915374,0.00022395,2]
[345533212,1734318646701,-210.12461968,0.00022395,2]
[345533214,1734318646710,-1892.95768699,0.00022395,2]
[345533216,1734318646719,-9010.33409779,0.00022395,2]
[345533218,1734318646729,-282.17537954,0.00022396,2]
[345533220,1734318646739,-2000.0,0.00022396,2]
[345533222,1734318646748,-157.5057861,0.00022396,3]
[345533224,1734318646757,-500.0,0.00022396,3]
[345533226,1734318646766,-500.0,0.00022396,3]
[345533228,1734318646775,-500.0,0.00022396,3]
[345533230,1734318646784,-500.0,0.00022396,3]
[345533232,1734318646795,-500.0,0.00022396,3]
[345533234,1734318646804,-500.0,0.00022396,3]
[345533236,1734318646814,-500.0,0.00022396,3]
[345533238,1734318646823,-500.0,0.00022396,3]
[345533240,1734318646832,-500.0,0.00022396,3]
[345533242,1734318646842,-500.0,0.00022396,3]
[345533244,1734318646851,-500.0,0.00022396,3]
[345533246,1734318646861,-500.0,0.00022396,3]
[345533248,1734318646870,-500.0,0.00022396,3]
[345533250,1734318646879,-764.81492736,0.00022396,4]
[345533252,1734318646889,-500.0,0.00022396,3]
[345533254,1734318646898,-500.0,0.00022396,3]
[345533256,1734318646907,-500.0,0.00022396,3]
[345533258,1734318646916,-405.25865634,0.00022396,3]
[345533260,1734318646925,-500.0,0.00022396,3]
[345533262,1734318646934,-500.0,0.00022396,3]
[345533264,1734318646943,-500.0,0.00022396,3]
[345533266,1734318646953,-500.0,0.00022396,3]
[345533268,1734318646962,-500.0,0.00022396,3]
[345533270,1734318646971,-500.0,0.00022396,3]
[345533272,1734318646980,-500.0,0.00022396,3]
[345533274,1734318646990,-500.0,0.00022396,3]
[345533276,1734318646999,-500.0,0.00022396,3]
[345533278,1734318647008,-500.0,0.00022396,3]
[345533280,1734318647017,-1000.0,0.00022397,2]
[345533282,1734318647027,-567.8873061,0.00022397,2]
[345533284,1734318647036,-221.39324222,0.00022397,2]
[345533286,1734318647045,-1000.0,0.00022398,2]
[345533288,1734318647054,-500.0,0.00022398,3]
[345533290,1734318647064,-300.0,0.00022398,3]
[345533292,1734318647073,-500.0,0.00022398,3]
[345533294,1734318647083,-497.8,0.00022398,3]
[345533296,1734318647092,-190.40002896,0.00022398,2]
[345533298,1734318647101,-210.05315305,0.00022398,2]
[345533300,1734318647115,-210.053153,0.00022398,2]
[345533302,1734318647124,-1031.15431059,0.00022399,2]
[345533304,1734318647133,-210.053153,0.00022399,2]
[345533306,1734318647142,-200.0,0.00022399,2]
[345533308,1734318647151,-200.0,0.00022399,2]
[345533310,1734318647161,-500.0,0.00022399,3]
[345533312,1734318647171,-500.0,0.00022399,3]
[345533314,1734318647179,-500.0,0.00022399,3]
[345533316,1734318647191,-500.0,0.00022399,3]
[345533318,1734318647201,-500.0,0.00022399,3]
[345533320,1734318647210,-210.053153,0.00022399,2]
[345533322,1734318647219,-500.0,0.00022399,3]
[345533324,1734318647229,-500.0,0.00022399,3]
[345533326,1734318647238,-338.56,0.00022399,3]
[345533328,1734318647248,-500.0,0.00022399,3]
[345533330,1734318647257,-500.0,0.00022399,3]
[345533332,1734318647268,-500.0,0.00022399,3]
[345533334,1734318647279,-7170.8,0.00022399,3]
[345533336,1734318647288,-500.0,0.00022399,3]
[345533338,1734318647297,-500.0,0.00022399,3]
[345533340,1734318647306,-500.0,0.00022399,3]
[345533342,1734318647316,-500.0,0.00022399,3]
[345533344,1734318647325,-500.0,0.00022399,3]
[345533346,1734318647335,-500.0,0.00022399,3]
[345533348,1734318647343,-500.0,0.00022399,3]
[345533350,1734318647353,-500.0,0.00022399,3]
[345533352,1734318647362,-500.0,0.00022399,3]
[345533354,1734318647371,-500.0,0.00022399,3]
[345533355,1734318647380,-500.0,0.00022399,3]
[345533358,1734318647390,-500.0,0.00022399,3]
[345533360,1734318647399,-500.0,0.00022399,3]
[345533361,1734318647407,-500.0,0.00022399,3]
[345533363,1734318647416,-500.0,0.00022399,3]
[345533365,1734318647426,-500.0,0.00022399,3]
[345533367,1734318647434,-509.17,0.00022399,3]
[345533369,1734318647444,-500.0,0.00022399,3]
[345533371,1734318647453,-500.0,0.00022399,3]
[345533373,1734318647462,-500.0,0.00022399,3]
[345533375,1734318647472,-500.0,0.00022399,3]
[345533378,1734318647481,-579.05,0.00022399,3]
[345533379,1734318647490,-151.0,0.00022399,7]
[345533381,1734318647499,-751.2258316,0.00022399,2]
[345533383,1734318647508,-210.053153,0.00022399,2]
[345533385,1734318647517,-210.053153,0.000224,2]
[345533387,1734318647528,-3000.0,0.000224,2]
[345533389,1734318647537,-2039.85725575,0.000224,2]
[345533391,1734318647546,-276.95083765,0.000224,7]
[345533393,1734318647555,-276.95083765,0.000224,7]
[345533395,1734318647564,-276.95083765,0.000224,7]
[345533397,1734318647574,-276.95083765,0.000224,7]
[345533399,1734318647583,-276.95083765,0.000224,7]
[345533401,1734318647591,-276.95083765,0.000224,7]
[345533403,1734318647602,-276.95083765,0.000224,7]
[345533405,1734318647611,-276.95083765,0.000224,7]
[345533407,1734318647620,-276.95083765,0.000224,7]
[345533409,1734318647629,-276.95083765,0.000224,7]
[345533411,1734318647639,-276.95083765,0.000224,7]
[345533413,1734318647648,-276.95083765,0.000224,7]
[345533415,1734318647657,-276.95083765,0.000224,7]
[345533417,1734318647666,-276.95083765,0.000224,7]
[345533419,1734318647675,-276.95083765,0.000224,7]
[345533421,1734318647684,-276.95083765,0.000224,7]
[345533423,1734318647693,-276.95083765,0.000224,7]
[345533425,1734318647704,-276.95083765,0.000224,7]
[345533427,1734318647713,-276.95083765,0.000224,7]
[345533429,1734318647722,-276.95,0.000224,7]
[345533431,1734318647732,-415.42625647,0.000224,7]
[345533433,1734318647741,-415.42625647,0.000224,7]
[345533434,1734318647749,-415.42625647,0.000224,7]
[345533435,1734318647759,-415.42625647,0.000224,7]
[345533436,1734318647767,-415.42625647,0.000224,7]
[345533437,1734318647777,-415.42625647,0.000224,7]
[345533438,1734318647786,-415.42625647,0.000224,7]
[345533439,1734318647795,-415.42625647,0.000224,7]
[345533440,1734318647804,-415.42625647,0.000224,7]
[345533441,1734318647813,-415.42625647,0.000224,7]
[345533442,1734318647822,-415.42625647,0.000224,7]
[345533443,1734318647832,-415.42625647,0.000224,7]
[345533444,1734318647840,-415.42625647,0.000224,7]
[345533445,1734318647849,-415.42625647,0.000224,7]
[345533446,1734318647860,-415.42625647,0.000224,7]
[345533447,1734318647870,-415.42625647,0.000224,7]
[345533448,1734318647879,-415.42625647,0.000224,7]
[345533449,1734318647888,-415.42625647,0.000224,7]
[345533450,1734318647897,-415.42625647,0.000224,7]
[345533452,1734318647906,-415.42,0.000224,7]
[345533454,1734318647915,-255.74919158,0.000224,2]
[345533456,1734318647924,-151.0,0.000224,7]
[345533458,1734318647934,-191.90241,0.000224,7]
[345533460,1734318647943,-911.34,0.000224,31]
[345533462,1734318647952,-911.34,0.000224,31]
[345533464,1734318647961,-911.34,0.000224,31]
[345533466,1734318647971,-911.34,0.000224,31]
[345533468,1734318647980,-911.34,0.000224,31]
[345533470,1734318647989,-911.34,0.000224,31]
[345533472,1734318647998,-911.34,0.000224,31]
[345533474,1734318648007,-911.34,0.000224,31]
[345533476,1734318648017,-911.34,0.000224,31]
[345533478,1734318648026,-911.34,0.000224,31]
[345533480,1734318648036,-911.34,0.000224,31]
[345533482,1734318648045,-911.34,0.000224,31]
[345533484,1734318648055,-911.34,0.000224,31]
[345533486,1734318648064,-911.34,0.000224,31]
[345533488,1734318648073,-911.34,0.000224,31]
[345533490,1734318648083,-911.34,0.000224,31]
[345533492,1734318648093,-191.90241,0.000224,7]
[345533494,1734318648105,-153.055003,0.000224,7]
[345533496,1734318648115,-151.0,0.000224,7]